bitfinex-derivatives/quotes_SOLF0:USTF0_20260116
["timestamp","ask_amount","ask_price","bid_price","bid_amount"]
[1768548220987,36.6795053,143.15,143.09,25.80625528]
[1768548221181,26.42465017,143.15,143.09,25.80625528]
[1768548221784,26.42465017,143.15,143.09,32.09795528]
[1768548227088,26.42465017,143.15,143.1,6.291]
[1768548230590,26.42465017,143.15,143.11,6.2909]
[1768548231588,1.59167137,143.18,143.12,6.2903]
[1768548231795,10.2408091,143.17,143.12,6.2903]
[1768548232092,6.286,143.23,143.11,24.53012481]
[1768548232295,1.59167137,143.19,143.11,24.53012481]
[1768548232489,10.23981758,143.18,143.11,24.53012481]
[1768548232689,10.23981758,143.17,143.11,24.53012481]
[1768548232890,1.59167137,143.19,143.11,24.53012481]
[1768548233195,10.22840947,143.18,143.11,24.53012481]
[1768548233395,4.46e-05,143.17,143.11,24.53012481]
[1768548233588,24.95564881,143.18,143.11,24.53012481]
[1768548233785,24.95564881,143.18,143.14,6.2896]
[1768548238996,24.95564881,143.18,143.11,24.53012481]
[1768548239494,26.54732018,143.18,143.11,24.53012481]
[1768548239696,24.95564881,143.18,143.11,30.82102481]
[1768548239891,26.54732018,143.18,143.11,30.82102481]
[1768548242800,24.95564881,143.18,143.11,30.82102481]
[1768548243007,26.54732018,143.18,143.11,30.82102481]
[1768548255225,24.95564881,143.18,143.11,30.82102481]
[1768548257423,30.26788579,143.17,143.11,30.82102481]
[1768548257622,24.95564881,143.17,143.11,30.82102481]
[1768548258521,24.95564881,143.15,143.09,30.82172481]
[1768548258918,24.95564881,143.15,143.05,24.53012481]
[1768548259114,26.54732018,143.15,143.05,24.53012481]
[1768548259925,26.54732018,143.15,143.07,6.2924]
[1768548260223,30.27100477,143.14,143.07,30.82252481]
[1768548260425,24.95564881,143.14,143.07,30.82252481]
[1768548262828,24.95564881,143.14,143.07,24.53012481]
[1768548267233,24.95564881,143.14,143.06,6.2931]
[1768548267533,26.54732018,143.14,143.06,32.03894483]
[1768548267832,24.95564881,143.14,143.06,32.03894483]
[1768548268025,26.54732018,143.14,143.06,32.03894483]
[1768548273533,24.95564881,143.14,143.06,32.03894483]
[1768548273737,26.54732018,143.14,143.06,32.03894483]
[1768548277743,26.54732018,143.14,143.07,32.03844483]
[1768548278537,29.70035252,143.13,143.07,32.03844483]
[1768548278742,24.38830727,143.13,143.07,32.03844483]
[1768548287459,25.98074345,143.13,143.07,32.03844483]
[1768548297760,24.38830727,143.13,143.07,32.03844483]
[1768548299056,5.32483168,143.12,143.07,32.03844483]
[1768548299359,24.38830727,143.13,143.07,32.03844483]
[1768548299558,5.32483168,143.12,143.07,32.03844483]
[1768548299859,24.38830727,143.13,143.07,32.03844483]
[1768548300165,5.32472539,143.12,143.07,32.03844483]
[1768548300365,24.38830727,143.13,143.07,32.03844483]
[1768548300565,5.32573996,143.12,143.07,32.03844483]
[1768548300764,24.38830727,143.13,143.07,32.03844483]
[1768548300962,5.32556693,143.12,143.07,32.03844483]
[1768548301267,24.38830727,143.13,143.07,32.03844483]
[1768548301465,5.32730062,143.12,143.07,32.03844483]
[1768548301665,24.38830727,143.13,143.07,32.03844483]
[1768548301865,5.32732098,143.12,143.07,32.03844483]
[1768548302067,24.38830727,143.13,143.07,32.03844483]
[1768548302261,5.32896151,143.12,143.07,32.03844483]
[1768548302462,24.38830727,143.13,143.07,32.03844483]
[1768548302666,5.32891706,143.12,143.07,32.03844483]
[1768548302868,24.38830727,143.13,143.07,32.03844483]
[1768548303065,5.32891706,143.12,143.07,32.03844483]
[1768548303366,24.38830727,143.13,143.07,32.03844483]
[1768548303562,5.33108848,143.12,143.07,32.03844483]
[1768548303765,24.38830727,143.13,143.07,32.03844483]
[1768548303956,5.33119489,143.12,143.07,32.03844483]
[1768548304156,24.38830727,143.13,143.07,32.03844483]
[1768548304360,5.33152566,143.12,143.07,32.03844483]
[1768548304563,24.38830727,143.13,143.07,32.03844483]
[1768548304762,5.33152566,143.12,143.07,32.03844483]
[1768548304957,24.38830727,143.13,143.07,32.03844483]
[1768548305161,5.33147177,143.12,143.07,32.03844483]
[1768548305363,24.38830727,143.13,143.07,32.03844483]
[1768548305667,5.33170303,143.12,143.07,32.03844483]
[1768548305870,24.38830727,143.13,143.07,32.03844483]
[1768548306064,5.33170303,143.12,143.07,32.03844483]
[1768548306264,24.38830727,143.13,143.07,32.03844483]
[1768548306569,5.33191728,143.12,143.07,32.03844483]
[1768548306768,24.38830727,143.13,143.07,32.03844483]
[1768548306969,5.33191728,143.12,143.07,32.03844483]
[1768548307170,24.38830727,143.13,143.07,32.03844483]
[1768548307369,5.33205512,143.12,143.07,32.03844483]
[1768548307571,24.38830727,143.13,143.07,32.03844483]
[1768548307772,5.33205512,143.12,143.07,32.03844483]
[1768548308069,24.38830727,143.13,143.07,32.03844483]
[1768548308259,5.33205354,143.12,143.07,32.03844483]
[1768548308458,24.38830727,143.13,143.07,32.03844483]
[1768548308658,5.33211808,143.12,143.07,32.03844483]
[1768548308872,24.38830727,143.13,143.07,32.03844483]
[1768548309069,5.3321713,143.12,143.07,32.03844483]
[1768548309262,24.38830727,143.13,143.07,32.03844483]
[1768548309459,5.33214588,143.12,143.07,32.03844483]
[1768548309663,24.38830727,143.13,143.07,32.03844483]
[1768548309859,5.33214588,143.12,143.07,32.03844483]
[1768548310066,24.38830727,143.13,143.07,32.03844483]
[1768548310264,5.33222505,143.12,143.07,32.03844483]
[1768548310471,24.38830727,143.13,143.07,32.03844483]
[1768548310665,5.33206839,143.12,143.07,32.03844483]
[1768548310867,24.38830727,143.13,143.07,32.03844483]
[1768548311160,6.839e-05,143.12,143.08,31.92421084]
[1768548311367,26.1170578,143.15,143.08,31.92421084]
[1768548311871,26.1170578,143.15,143.1,25.63211084]
[1768548312170,26.1170578,143.17,143.1,25.63211084]
[1768548312875,24.52462162,143.19,143.12,25.63211084]
[1768548313170,26.1170578,143.19,143.12,25.63211084]
[1768548313774,26.1170578,143.19,143.13,6.29]
[1768548317074,26.1170578,143.19,143.12,25.63211084]
[1768548319375,26.1170578,143.17,143.11,6.2907]
[1768548321279,26.1170578,143.17,143.1,25.63211084]
[1768548328187,24.52462162,143.17,143.09,6.2916]
[1768548328485,25.29231311,143.15,143.08,25.35152087]
[1768548331888,26.88474929,143.17,143.08,31.64362087]
[1768548332087,5.28829055,143.16,143.08,31.64362087]
[1768548332288,5.28829055,143.15,143.08,31.64362087]
[1768548332490,5.28829055,143.15,143.07,1.59243618]
[1768548332491,25.29231311,143.17,143.1,25.35152087]
[1768548332686,5.28998741,143.16,143.1,25.35152087]
[1768548332987,25.29231311,143.17,143.1,25.35152087]
[1768548333291,5.28995442,143.16,143.1,25.35152087]
[1768548333486,25.29231311,143.17,143.1,25.35152087]
[1768548333693,5.29010662,143.16,143.1,25.35152087]
[1768548333885,25.29231311,143.17,143.1,25.35152087]
[1768548334178,5.29010662,143.16,143.1,25.35152087]
[1768548334377,25.29231311,143.17,143.1,25.35152087]
[1768548334578,5.29025826,143.16,143.1,25.35152087]
[1768548334782,25.29231311,143.17,143.1,25.35152087]
[1768548335087,30.58262415,143.16,143.1,25.35152087]
[1768548335280,25.29231311,143.16,143.1,25.35152087]
[1768548336291,31.58141311,143.16,143.1,25.35152087]
[1768548337595,33.17384929,143.16,143.1,25.35152087]
[1768548342302,5.29079538,143.15,143.1,25.35152087]
[1768548342502,33.17384929,143.16,143.1,25.35152087]
[1768548342701,5.29079538,143.15,143.1,25.35152087]
[1768548342896,33.17384929,143.16,143.1,25.35152087]
[1768548343096,5.29079538,143.15,143.1,25.35152087]
[1768548343297,33.17384929,143.16,143.1,25.35152087]
[1768548343499,5.29120926,143.15,143.1,25.35152087]
[1768548343702,33.17384929,143.16,143.1,25.35152087]
[1768548344002,5.29052156,143.15,143.1,25.35152087]
[1768548344203,33.17384929,143.16,143.1,25.35152087]
[1768548344403,5.29096453,143.15,143.1,25.35152087]
[1768548344702,33.17384929,143.16,143.1,25.35152087]
[1768548344905,5.29096453,143.15,143.1,25.35152087]
[1768548345105,33.17384929,143.16,143.1,25.35152087]
[1768548345405,5.29096453,143.15,143.1,25.35152087]
[1768548345701,33.17384929,143.16,143.1,25.35152087]
[1768548345898,5.29117204,143.15,143.1,25.35152087]
[1768548346098,25.29231311,143.15,143.1,25.35152087]
[1768548348906,31.58171311,143.15,143.1,25.35152087]
[1768548351911,6.2898,143.14,143.1,25.35152087]
[1768548357014,6.2898,143.14,143.1,3.17412087]
[1768548357209,6.2898,143.14,143.1,2.087e-05]
[1768548357516,6.2902,143.13,143.1,2.087e-05]
[1768548357710,6.2902,143.13,143.05,1.59183003]
[1768548359316,6.2902,143.13,143.06,25.33458402]
[1768548360717,6.2908,143.12,143.06,25.33458402]
[1768548361016,25.17928795,143.14,143.06,25.33458402]
[1768548361215,5.29480265,143.13,143.06,25.33458402]
[1768548361404,25.17928795,143.14,143.06,25.33458402]
[1768548361609,5.29505398,143.13,143.06,25.33458402]
[1768548361810,6.2911,143.11,143.06,25.33458402]
[1768548364908,6.2902,143.13,143.06,25.33458402]
[1768548365419,29.87765792,143.13,143.06,25.33458402]
[1768548368017,1.59183003,143.12,143.06,25.33458402]
[1768548375737,1.59183003,143.12,143.06,31.62768402]
[1768548378236,23.58745792,143.13,143.06,31.62768402]
[1768548378436,1.59183003,143.12,143.06,31.62768402]
[1768548384242,23.12794574,143.12,143.06,31.62768402]
[1768548386742,23.12794574,143.12,143.06,25.33458402]
[1768548388245,1.59183003,143.1,143.06,25.33458402]
[1768548396849,21.3622947,143.11,143.06,25.33458402]
[1768548397747,21.3622947,143.14,143.06,25.33458402]
[1768548398049,5.30763957,143.13,143.06,25.33458402]
[1768548398248,5.30763957,143.12,143.06,25.33458402]
[1768548398545,21.3622947,143.14,143.06,25.33458402]
[1768548398748,10.18686591,143.13,143.06,31.62768402]
[1768548398949,10.18686591,143.12,143.06,31.62768402]
[1768548399150,21.3622947,143.14,143.06,31.62768402]
[1768548399448,10.18730397,143.13,143.06,31.62768402]
[1768548399750,10.18730397,143.12,143.06,31.62768402]
[1768548399952,21.3622947,143.14,143.06,31.62768402]
[1768548400152,10.18738464,143.13,143.06,31.62768402]
[1768548400352,10.18738464,143.12,143.06,31.62768402]
[1768548400653,21.3622947,143.14,143.06,31.62768402]
[1768548400853,10.18835715,143.13,143.06,31.62768402]
[1768548401151,10.18835715,143.12,143.06,31.62768402]
[1768548401355,21.3622947,143.14,143.06,31.62768402]
[1768548401655,10.18832087,143.13,143.06,31.62768402]
[1768548401951,10.18832087,143.12,143.06,31.62768402]
[1768548402151,21.3622947,143.14,143.06,31.62768402]
[1768548402353,10.18917886,143.13,143.06,31.62768402]
[1768548402545,10.18917886,143.12,143.06,31.62768402]
[1768548402741,21.3622947,143.14,143.06,31.62768402]
[1768548402946,10.18917886,143.13,143.06,31.62768402]
[1768548403144,10.18917886,143.12,143.06,31.62768402]
[1768548403346,21.3622947,143.14,143.06,31.62768402]
[1768548403546,10.18994808,143.13,143.06,31.62768402]
[1768548403756,10.18994808,143.12,143.06,31.62768402]
[1768548403959,21.3622947,143.14,143.06,31.62768402]
[1768548404254,10.18994808,143.13,143.06,31.62768402]
[1768548404459,10.18994808,143.12,143.06,31.62768402]
[1768548404645,21.3622947,143.14,143.06,31.62768402]
[1768548404950,10.1912227,143.13,143.06,31.62768402]
[1768548405159,10.1912227,143.12,143.06,31.62768402]
[1768548405454,21.3622947,143.14,143.06,31.62768402]
[1768548405655,11.78309605,143.13,143.06,31.62768402]
[1768548405857,10.19126602,143.12,143.06,31.62768402]
[1768548406045,1.59183003,143.13,143.06,31.62768402]
[1768548406249,10.19126602,143.12,143.06,31.62768402]
[1768548406450,1.59183003,143.13,143.06,31.62768402]
[1768548406653,10.19138531,143.12,143.06,31.62768402]
[1768548406851,1.59183003,143.13,143.06,31.62768402]
[1768548407047,10.19138531,143.12,143.06,31.62768402]
[1768548407253,1.59183003,143.13,143.06,31.62768402]
[1768548407457,10.1915266,143.12,143.06,31.62768402]
[1768548407657,1.59183003,143.13,143.06,31.62768402]
[1768548407861,10.19152033,143.12,143.06,31.62768402]
[1768548408161,1.59183003,143.13,143.06,31.62768402]
[1768548408360,10.19206851,143.12,143.06,31.62768402]
[1768548408561,1.59183003,143.13,143.06,31.62768402]
[1768548408763,10.19140543,143.12,143.06,31.62768402]
[1768548409053,1.59183003,143.13,143.06,31.62768402]
[1768548409256,10.19079136,143.12,143.06,31.62768402]
[1768548409462,1.59238167,143.13,143.06,31.62768402]
[1768548409662,10.19080021,143.12,143.06,31.62768402]
[1768548409864,1.59238167,143.13,143.06,31.62768402]
[1768548410160,10.19129864,143.12,143.06,31.62768402]
[1768548410361,1.59238167,143.13,143.06,31.62768402]
[1768548410663,10.19126819,143.12,143.06,31.62768402]
[1768548410959,1.59238167,143.13,143.06,31.62768402]
[1768548411161,10.19176557,143.12,143.06,31.62768402]
[1768548411364,1.59238167,143.13,143.06,31.62768402]
[1768548411562,10.19360441,143.12,143.06,31.62768402]
[1768548411765,1.59238167,143.13,143.06,31.62768402]
[1768548411955,10.19360441,143.12,143.06,31.62768402]
[1768548412152,1.59238167,143.13,143.06,31.62768402]
[1768548412358,10.19358564,143.12,143.06,31.62768402]
[1768548412558,1.59238167,143.13,143.06,31.62768402]
[1768548412759,10.19358564,143.12,143.06,31.62768402]
[1768548412960,1.59238167,143.13,143.06,31.62768402]
[1768548413160,10.19436952,143.12,143.06,31.62768402]
[1768548413357,1.59238167,143.13,143.06,31.62768402]
[1768548413556,10.19437361,143.12,143.06,31.62768402]
[1768548413758,1.59238167,143.13,143.06,31.62768402]
[1768548413964,10.19437361,143.12,143.06,31.62768402]
[1768548414166,1.59238167,143.13,143.06,31.62768402]
[1768548414366,10.19462034,143.12,143.06,31.62768402]
[1768548414569,19.9528132,143.13,143.06,31.62768402]
[1768548414772,10.19462034,143.12,143.06,31.62768402]
[1768548414964,19.9528132,143.13,143.06,31.62768402]
[1768548415165,10.19461862,143.12,143.06,31.62768402]
[1768548415366,19.9528132,143.13,143.06,31.62768402]
[1768548415566,10.19492112,143.12,143.06,31.62768402]
[1768548415766,19.9528132,143.13,143.06,31.62768402]
[1768548415969,10.19492112,143.12,143.06,31.62768402]
[1768548416168,19.9528132,143.13,143.06,31.62768402]
[1768548416368,10.19514005,143.12,143.06,31.62768402]
[1768548416572,19.9528132,143.13,143.06,31.62768402]
[1768548416772,10.19513995,143.12,143.06,31.62768402]
[1768548416973,19.9528132,143.13,143.06,31.62768402]
[1768548417173,10.19513995,143.12,143.06,31.62768402]
[1768548417372,19.9528132,143.13,143.06,31.62768402]
[1768548417568,10.19543947,143.12,143.06,31.62768402]
[1768548417770,19.9528132,143.13,143.06,31.62768402]
[1768548417969,10.19543952,143.12,143.06,31.62768402]
[1768548418170,19.9528132,143.13,143.06,31.62768402]
[1768548418371,10.19604521,143.12,143.06,31.62768402]
[1768548418574,19.9528132,143.13,143.06,31.62768402]
[1768548418873,10.19704387,143.12,143.06,31.62768402]
[1768548419075,19.9528132,143.13,143.06,31.62768402]
[1768548419374,10.19725087,143.12,143.06,31.62768402]
[1768548419576,5.31407029,143.11,143.06,31.62768402]
[1768548419874,19.9528132,143.13,143.06,31.62768402]
[1768548420074,10.19744484,143.12,143.06,31.62768402]
[1768548420275,5.31407245,143.11,143.06,31.62768402]
[1768548420476,19.9528132,143.13,143.06,31.62768402]
[1768548420677,10.19787676,143.12,143.06,31.62768402]
[1768548420874,5.31429779,143.11,143.06,31.62768402]
[1768548421174,19.9528132,143.13,143.06,31.62768402]
[1768548421373,10.19984576,143.12,143.06,31.62768402]
[1768548421574,5.31530628,143.11,143.06,31.62768402]
[1768548421773,19.9528132,143.13,143.06,31.62768402]
[1768548421975,19.9528132,143.13,143.06,25.33458402]
[1768548421976,28.5612073,143.12,143.06,25.33458402]
[1768548422175,25.26861631,143.11,143.06,25.33458402]
[1768548422474,19.9528132,143.11,143.06,25.33458402]
[1768548440904,26.2440132,143.11,143.06,25.33458402]
[1768548441204,26.2440132,143.11,143.06,23.74408068]
[1768548443506,24.65163153,143.11,143.06,23.74408068]
[1768548443902,6.2917,143.1,143.06,23.74408068]
[1768548448809,6.2917,143.1,143.06,12.88758068]
[1768548449807,6.2917,143.1,143.06,2.01178068]
[1768548450011,18.36043153,143.11,143.01,20.59238167]
[1768548450206,18.36043153,143.11,143.0,1.59238167]
[1768548451810,6.2925,143.08,143.0,1.59238167]
[1768548452010,6.2925,143.08,143.0,20.59238167]
[1768548454212,6.2925,143.08,143.0,19.0]
[1768548455112,6.293,143.07,142.99,19.0]
[1768548455314,15.40923234,143.08,142.99,19.0]
[1768548455512,17.00161401,143.07,142.97,19.0]
[1768548455712,21.70353234,143.04,142.95,19.0]
[1768548456111,21.70353234,143.04,142.95,20.59238167]
[1768548458220,21.70353234,143.04,142.95,19.0]
[1768548458519,21.70353234,143.04,142.95,20.59238167]
[1768548458921,6.2943,143.04,142.95,20.59238167]
[1768548459915,1.59238167,143.05,142.95,20.59238167]
[1768548460617,1.59238167,143.05,142.95,26.89028167]
[1768548463323,1.59238167,143.05,142.95,25.2979]
[1768548464324,15.40923234,143.04,142.94,20.2169747]
[1768548464526,17.00161401,143.04,142.94,19.0]
[1768548465827,17.00161401,143.04,142.94,25.2984]
[1768548467227,17.00161401,143.04,142.95,6.298]
[1768548469331,17.00349571,143.04,142.95,6.298]
[1768548470236,17.00349571,143.04,142.96,6.2975]
[1768548473733,17.00349571,143.04,142.97,6.2971]
[1768548473937,15.40923234,143.04,142.97,6.2971]
[1768548474141,17.00349571,143.04,142.97,6.2971]
[1768548475336,13.21046592,143.01,142.97,6.2971]
[1768548475536,14.80472929,143.03,142.97,6.2971]
[1768548479944,14.80472929,143.03,142.98,6.2965]
[1768548481145,6.337e-05,143.01,142.98,6.2965]
[1768548481345,13.21046592,143.02,142.98,3.11223878]
[1768548481547,13.21052929,143.01,142.98,3.11223878]
[1768548481749,2.929e-05,143.01,142.98,3.11223878]
[1768548482045,9.266e-05,143.01,142.98,3.11223878]
[1768548482847,9.266e-05,143.01,142.95,97.9667]
[1768548483753,9.266e-05,143.01,142.98,6.2965]
[1768548483944,5.858e-05,143.01,142.98,6.2965]
[1768548484143,6.337e-05,143.0,142.96,97.9632]
[1768548484450,6.293,143.07,142.96,97.9632]
[1768548484649,6.337e-05,143.01,142.96,105.43619486]
[1768548485151,6.337e-05,143.02,142.96,105.43619486]
[1768548485751,6.337e-05,143.02,142.99,6.2962]
[1768548486352,6.337e-05,143.02,142.96,97.9632]
[1768548486552,6.592e-05,143.01,142.95,97.9667]
[1768548486753,6.592e-05,143.01,142.95,111.07196059]
[1768548487250,6.592e-05,143.01,142.97,6.2968]
[1768548487949,6.592e-05,143.01,142.93,97.9808]
[1768548487950,1.59426337,143.0,142.93,97.9808]
[1768548488150,1.59426337,143.0,142.93,111.08606059]
[1768548488555,14.80472929,143.0,142.96,6.2975]
[1768548489855,14.80472929,143.0,142.93,111.08606059]
[1768548490056,14.80472929,143.0,142.93,13.10526059]
[1768548494760,14.80472929,143.0,142.91,19.40496059]
[1768548495062,14.80472929,143.0,142.91,13.10526059]
[1768548495860,13.21046592,143.0,142.91,13.10526059]
[1768548496061,14.80472929,142.99,142.91,13.10526059]
[1768548497865,14.80472929,142.98,142.91,13.10526059]
[1768548503071,13.21046592,142.98,142.91,13.10526059]
[1768548504968,13.21046592,142.98,142.91,19.40486059]
[1768548507771,13.21046592,142.98,142.91,13.10526059]
[1768548510773,13.21046592,142.98,142.91,19.40496059]
[1768548514776,15.17592681,142.97,142.91,13.10526059]
[1768548516677,15.17592681,142.97,142.9,6.3]
[1768548516877,15.17592681,142.97,142.9,20.61392541]
[1768548519383,15.17592681,142.97,142.91,14.31392541]
[1768548524881,15.17592681,142.97,142.91,20.61362541]
[1768548526181,15.17592681,142.97,142.92,14.31392541]
[1768548536491,15.17592681,142.97,142.91,6.2997]
[1768548536686,15.17592681,142.97,142.91,24.46580775]
[1768548540393,15.17592681,142.97,142.89,24.46660775]
[1768548540588,18.59477971,142.96,142.89,24.46660775]
[1768548546897,18.59477971,142.96,142.89,18.16610775]
[1768548549901,16.99926894,142.95,142.89,18.16610775]
[1768548551491,18.59477971,142.95,142.89,18.16610775]
[1768548553201,24.89297971,142.95,142.89,18.16610775]
[1768548555904,16.99926894,142.94,142.89,18.16610775]
[1768548563007,16.99926894,142.94,142.88,20.15205014]
[1768548571108,18.59477971,142.94,142.88,20.15205014]
[1768548571809,24.89347971,142.94,142.88,20.15205014]
[1768548573412,23.29796894,142.94,142.88,20.15205014]
[1768548573612,24.89347971,142.94,142.88,20.15205014]
[1768548576214,19.99295396,142.93,142.88,20.15205014]
[1768548584138,5.31703692,142.92,142.88,20.15205014]
[1768548584328,19.99295396,142.93,142.88,20.15205014]
[1768548584525,5.31690409,142.92,142.88,20.15205014]
[1768548584724,19.99295396,142.93,142.88,20.15205014]
[1768548584930,5.31690406,142.92,142.88,20.15205014]
[1768548585135,19.99295396,142.93,142.88,20.15205014]
[1768548585328,5.31678986,142.92,142.88,20.15205014]
[1768548585527,19.99295396,142.93,142.88,20.15205014]
[1768548585828,5.31678986,142.92,142.88,20.15205014]
[1768548586029,19.99295396,142.93,142.88,20.15205014]
[1768548586230,5.31787569,142.92,142.88,20.15205014]
[1768548586433,19.99295396,142.93,142.88,20.15205014]
[1768548586725,5.31776619,142.92,142.88,20.15205014]
[1768548586931,19.99295396,142.93,142.88,20.15205014]
[1768548587133,5.31776619,142.92,142.88,20.15205014]
[1768548587333,19.99295396,142.93,142.88,20.15205014]
[1768548587530,5.31816479,142.92,142.88,20.15205014]
[1768548587828,19.99295396,142.93,142.88,20.15205014]
[1768548588028,5.31816479,142.92,142.88,20.15205014]
[1768548588227,19.99295396,142.93,142.88,20.15205014]
[1768548588433,5.31865344,142.92,142.88,20.15205014]
[1768548588637,19.99295396,142.93,142.88,20.15205014]
[1768548588933,5.31865344,142.92,142.88,20.15205014]
[1768548589134,19.99295396,142.93,142.88,20.15205014]
[1768548589335,5.31924692,142.92,142.88,20.15205014]
[1768548589533,19.99295396,142.93,142.88,20.15205014]
[1768548589731,5.31924692,142.92,142.88,20.15205014]
[1768548589938,19.99295396,142.95,142.88,20.15205014]
[1768548590135,5.31931496,142.94,142.88,20.15205014]
[1768548590335,5.31931496,142.93,142.88,20.15205014]
[1768548590538,5.31931496,142.92,142.88,20.15205014]
[1768548590733,19.99295396,142.95,142.88,20.15205014]
[1768548590939,5.3200937,142.94,142.88,20.15205014]
[1768548591142,5.3200937,142.93,142.88,20.15205014]
[1768548591334,5.3200937,142.92,142.88,20.15205014]
[1768548591625,19.99295396,142.95,142.88,20.15205014]
[1768548591830,5.3201044,142.94,142.88,20.15205014]
[1768548592037,5.3201044,142.93,142.88,20.15205014]
[1768548592339,5.3201044,142.92,142.88,20.15205014]
[1768548592535,19.99295396,142.95,142.88,20.15205014]
[1768548592835,5.32016866,142.94,142.88,20.15205014]
[1768548593035,5.32016866,142.93,142.88,20.15205014]
[1768548593235,5.32016866,142.92,142.88,20.15205014]
[1768548593436,21.58945803,142.95,142.88,20.15205014]
[1768548593637,5.32022542,142.94,142.88,20.15205014]
[1768548593834,5.32022542,142.93,142.88,20.15205014]
[1768548594033,5.32022542,142.92,142.88,20.15205014]
[1768548594234,20.3893375,142.94,142.88,20.15205014]
[1768548594537,5.32033025,142.93,142.88,20.15205014]
[1768548594742,5.32033025,142.92,142.88,20.15205014]
[1768548595040,20.3893375,142.94,142.88,20.15205014]
[1768548595338,5.32032785,142.93,142.88,20.15205014]
[1768548595532,5.32032785,142.92,142.88,20.15205014]
[1768548595733,20.3893375,142.94,142.88,20.15205014]
[1768548595934,5.32027639,142.93,142.88,20.15205014]
[1768548596134,5.32027639,142.92,142.88,20.15205014]
[1768548596334,20.3893375,142.94,142.88,20.15205014]
[1768548596634,5.32042171,142.93,142.88,20.15205014]
[1768548596837,5.32042171,142.92,142.88,20.15205014]
[1768548597033,20.3893375,142.94,142.88,20.15205014]
[1768548597233,5.32024769,142.93,142.88,20.15205014]
[1768548597528,5.32024769,142.92,142.88,20.15205014]
[1768548597734,20.3893375,142.94,142.88,20.15205014]
[1768548597936,5.32042701,142.93,142.88,20.15205014]
[1768548598138,20.3893375,142.94,142.88,20.15205014]
[1768548598139,5.32042701,142.92,142.88,20.15205014]
[1768548598338,20.3893375,142.94,142.88,20.15205014]
[1768548598537,5.32063839,142.93,142.88,20.15205014]
[1768548598737,5.32063839,142.92,142.88,20.15205014]
[1768548598937,20.3893375,142.94,142.88,20.15205014]
[1768548599139,5.32063839,142.93,142.88,20.15205014]
[1768548599346,5.32063839,142.92,142.88,20.15205014]
[1768548599541,20.3893375,142.94,142.88,20.15205014]
[1768548599741,5.32087352,142.93,142.88,20.15205014]
[1768548600041,5.32087352,142.92,142.88,20.15205014]
[1768548600242,20.3893375,142.94,142.88,20.15205014]
[1768548600543,25.71047106,142.93,142.88,20.15205014]
[1768548600735,5.32113356,142.92,142.88,20.15205014]
[1768548600931,20.3893375,142.93,142.88,20.15205014]
[1768548601144,5.32080957,142.92,142.88,20.15205014]
[1768548601344,20.3893375,142.93,142.88,20.15205014]
[1768548601541,5.32112591,142.92,142.88,20.15205014]
[1768548601847,20.3893375,142.93,142.88,20.15205014]
[1768548602045,5.32114784,142.92,142.88,20.15205014]
[1768548602246,20.3893375,142.93,142.88,20.15205014]
[1768548602546,5.32152166,142.92,142.88,20.15205014]
[1768548602747,20.3893375,142.93,142.88,20.15205014]
[1768548603044,5.32152384,142.92,142.88,20.15205014]
[1768548603244,20.3893375,142.93,142.88,20.15205014]
[1768548603434,5.32197566,142.92,142.88,20.15205014]
[1768548603636,26.6876375,142.95,142.88,20.15205014]
[1768548603844,5.32205891,142.94,142.88,20.15205014]
[1768548604042,5.32205891,142.93,142.88,20.15205014]
[1768548604441,25.71139641,142.93,142.88,20.15205014]
[1768548604641,5.32205891,142.92,142.88,20.15205014]
[1768548604842,5.32205891,142.91,142.88,20.15205014]
[1768548605145,20.3893375,142.93,142.88,20.15205014]
[1768548605342,5.32119221,142.92,142.88,20.15205014]
[1768548605539,5.32119221,142.91,142.88,20.15205014]
[1768548605739,21.98584157,142.93,142.88,20.15205014]
[1768548606035,5.32064852,142.92,142.88,20.15205014]
[1768548606345,5.32064852,142.91,142.88,20.15205014]
[1768548606644,21.98584157,142.93,142.88,20.15205014]
[1768548606944,21.98584157,142.91,142.86,21.38774541]
[1768548607146,5.32019568,142.9,142.86,21.38774541]
[1768548607342,21.98584157,142.91,142.86,21.38774541]
[1768548607647,25.70807294,142.9,142.85,17.24204888]
[1768548607836,20.3893375,142.9,142.85,17.24204888]
[1768548608640,5.52966667,142.89,142.85,17.24204888]
[1768548608946,5.52966667,142.88,142.85,17.24204888]
[1768548609249,5.52966667,142.87,142.85,17.24204888]
[1768548609445,20.3893375,142.9,142.85,17.24204888]
[1768548609645,5.63350161,142.89,142.85,17.24204888]
[1768548609846,5.63350161,142.88,142.85,17.24204888]
[1768548610046,5.63350161,142.87,142.85,17.24204888]
[1768548610244,20.3893375,142.9,142.85,17.24204888]
[1768548610444,5.63277918,142.89,142.85,17.24204888]
[1768548610650,5.63277918,142.88,142.85,17.24204888]
[1768548610942,5.63277918,142.87,142.85,17.24204888]
[1768548611146,20.3893375,142.9,142.85,17.24204888]
[1768548611445,5.63215197,142.89,142.85,17.24204888]
[1768548611648,5.63215197,142.88,142.85,17.24204888]
[1768548611947,5.63215197,142.87,142.85,17.24204888]
[1768548612144,20.3893375,142.9,142.85,17.24204888]
[1768548612337,5.63161689,142.89,142.85,17.24204888]
[1768548612536,5.63161689,142.88,142.85,17.24204888]
[1768548612737,5.63161689,142.87,142.85,17.24204888]